[Event "Fagernes Chess GM-Swiss 2024"]
[Site "Fagernes"]
[Date "2024.03.29"]
[Round "7.33"]
[White "Southcott-Moyers, Indy"]
[Black "Gandrud, Vegar Koi"]
[Result "1/2-1/2"]
[ECO "A35"]
[WhiteElo "2120"]
[BlackElo "2293"]
[Annotator "RC"]
[PlyCount "146"]
[EventDate "2024.03.25"]
[EventType "swiss"]
[EventCountry "NOR"]
[SourceTitle "playchess.com"]
[Source "ChessBase"]
[SourceQuality "1"]
[TimeControl "40/6000+30:2400+30"]

1. Nf3 {[%emt 0:00:14]} c5 {[%emt 0:02:47]} 2. c4 {[%emt 0:00:11]} Nc6 {[%emt 0:00:13]} 3. Nc3 {[%emt 0:00:06]} g6 {[%emt 0:00:21]} 4. e3 {[%emt 0:03:26]} Nf6 {[%emt 0:00:09]} 5. d4 {[%emt 0:00:19]} cxd4 {[%emt 0:00:15]} 6. exd4 {[%emt 0:00:06]} d5 {[%emt 0:00:05]} 7. cxd5 {[%emt 0:00:07]} Nxd5 {[%emt 0:00:12]} 8. Qb3 {[%emt 0:00:11]} e6 {[%emt 0:00:16]} 9. Bb5 {[%emt 0:00:18]} Bg7 {[%emt 0:02:59]} 10. O-O {[%emt 0:00:51]} O-O {[%emt 0:00:32]} 11. Bxc6 {[%emt 0:00:04]} bxc6 {[%emt 0:00:06]} 12. Re1 {[%emt 0:01:15]} Qb6 {[%emt 0:11:37]} 13. Qc2 {[%emt 0:04:05]} Nb4 {[%emt 0:07:58]} 14. Qd1 {[%emt 0:04:38]} Qa6 {[%emt 0:11:23]} 15. Ne4 {[%emt 0:23:00]} Nd3 {[%emt 0:01:12]} 16. Re3 {[%emt 0:06:08]} Nxc1 {[%emt 0:00:38]} 17. Nc5 {[%emt 0:00:28]} Qc4 {[%emt 0:02:17]} 18. Rxc1 {[%emt 0:07:33]} Qxa2 {[%emt 0:01:20]} 19. Rb3 {[%emt 0:13:15]} Qa5 {[%emt 0:01:39]} 20. Ne5 {[%emt 0:05:30]} Qc7 {[%emt 0:02:47]} 21. Ncd3 {[%emt 0:01:41]} Bb7 {[%emt 0:10:54]} 22. Nc5 {[%emt 0:03:50]} Bc8 {[%emt 0:00:35]} 23. Ncd3 {[%emt 0:04:24]} Qd6 {[%emt 0:34:21]} 24. Qf3 {[%emt 0:14:45]} Qxd4 {[%emt 0:01:53]} 25. Nxc6 {[%emt 0:00:54]} Qf6 {[%emt 0:01:04]} 26. Ne7+ {[%emt 0:02:05]} Qxe7 {[%emt 0:00:01]} 27. Qxa8 {[%emt 0:00:06]} Ba6 {[%emt 0:00:09]} 28. Qf3 {[%emt 0:04:48]} Bd4 {[%emt 0:00:10]} 29. Nb4 {[%emt 0:01:56]} Bb7 {[%emt 0:00:21]} 30. Qg3 {[%emt 0:03:36]} Qf6 {[%emt 0:01:41]} 31. Nc6 {[%emt 0:02:08]} Bxc6 {[%emt 0:00:43]} 32. Rxc6 {[%emt 0:00:08]} Bxb2 {[%emt 0:00:18]} 33. Qf3 {[%emt 0:00:32]} Qxf3 {[%emt 0:01:20]} 34. Rxf3 {[%emt 0:00:02]} Rd8 {[%emt 0:00:32]} 35. Kf1 {[%emt 0:00:37]} Rd7 {[%emt 0:00:52]} 36. Ke2 {[%emt 0:00:45]} Rb7 {[%emt 0:05:49]} 37. Rd3 {[%emt 0:00:20]} Kf8 {[%emt 0:04:34]} 38. f4 {[%emt 0:01:10]} e5 {[%emt 0:00:30]} 39. fxe5 {[%emt 0:00:37]} Bxe5 {[%emt 0:00:02]} 40. h3 {[%emt 0:00:30]} h5 {[%emt 0:00:58]} 41. Kf3 {[%emt 0:43:38]} Kg7 {[%emt 0:41:27]} 42. Ke4 {[%emt 0:00:00]} Re7 {[%emt 0:00:00]} 43. Kf3 {[%emt 0:00:00]} Bc7 {[%emt 0:00:00]} 44. h4 {[%emt 0:00:00]} Ba5 {[%emt 0:00:00]} 45. g3 {[%emt 0:00:00]} Bb4 {[%emt 0:00:00]} 46. Rd5 {[%emt 0:00:00]} Rb7 {[%emt 0:00:00]} 47. g4 {[%emt 0:00:00]} hxg4+ {[%emt 0:00:00]} 48. Kxg4 {[%emt 0:00:00]} Be7 {[%emt 0:00:00]} 49. h5 {[%emt 0:00:00]} gxh5+ {[%emt 0:00:00]} 50. Rxh5 {[%emt 0:00:00]} Rb4+ {[%emt 0:00:00]} 51. Kf3 {[%emt 0:00:00]} Bd8 {[%emt 0:00:00]} 52. Rf5 {[%emt 0:00:00]} Rd4 {[%emt 0:00:00]} 53. Rf4 {[%emt 0:00:00]} Rd1 {[%emt 0:00:00]} 54. Ke2 {[%emt 0:00:00]} Rd5 {[%emt 0:00:00]} 55. Ra6 {[%emt 0:00:00]} Bb6 {[%emt 0:00:00]} 56. Rfa4 {[%emt 0:00:00]} Rd7 {[%emt 0:00:00]} 57. Rb4 {[%emt 0:00:00]} Re7+ {[%emt 0:00:00]} 58. Kf1 {[%emt 0:00:00]} Re6 {[%emt 0:00:00]} 59. Rba4 {[%emt 0:00:00]} Kg6 {[%emt 0:00:00]} 60. Rxa7 {[%emt 0:00:00]} Bxa7 {[%emt 0:00:00]} 61. Rxa7 {[%emt 0:00:00]} f5 {[%emt 0:00:00]} 62. Kf2 {[%emt 0:00:00]} Rb6 {[%emt 0:00:00]} 63. Ra3 {[%emt 0:00:00]} Rb2+ {[%emt 0:00:00]} 64. Kf1 {[%emt 0:00:00]} Kg5 {[%emt 0:00:00]} 65. Rc3 {[%emt 0:00:00]} Kg4 {[%emt 0:00:00]} 66. Rc4+ {[%emt 0:00:00]} f4 {[%emt 0:00:00]} 67. Rc3 {[%emt 0:00:00]} Kf5 {[%emt 0:00:00]} 68. Ra3 {[%emt 0:00:00]} Ke4 {[%emt 0:00:00]} 69. Ra4+ {[%emt 0:00:00]} Kf3 {[%emt 0:00:00]} 70. Ra3+ {[%emt 0:00:00]} Kg4 {[%emt 0:00:00]} 71. Rc3 {[%emt 0:00:00]} f3 {[%emt 0:00:00]} 72. Rc8 {[%emt 0:00:01]} Kg3 {[%emt 0:00:00]} 73. Rg8+ {[%emt 0:00:02]} Kf4 {[%emt 0:00:09]} 1/2-1/2

[Event "Fagernes Chess GM-Swiss 2024"]
[Site "Fagernes"]
[Date "2024.03.29"]
[Round "7.34"]
[White "Moreby, James"]
[Black "Shivika Rohilla"]
[Result "1-0"]
[ECO "A14"]
[WhiteElo "2260"]
[BlackElo "2003"]
[Annotator "RC"]
[PlyCount "75"]
[EventDate "2024.03.25"]
[EventType "swiss"]
[EventCountry "NOR"]
[SourceTitle "playchess.com"]
[Source "ChessBase"]
[SourceQuality "1"]
[TimeControl "40/6000+30:2400+30"]

1. Nf3 {[%emt 0:04:27]} Nf6 {[%emt 0:02:06]} 2. g3 {[%emt 0:00:23]} e6 {[%emt 0:00:06]} 3. Bg2 {[%emt 0:00:14]} d5 {[%emt 0:00:06]} 4. O-O {[%emt 0:00:28]} Be7 {[%emt 0:00:57]} 5. c4 {[%emt 0:03:42]} O-O {[%emt 0:00:08]} 6. b3 {[%emt 0:00:19]} d4 {[%emt 0:16:08]} 7. Bb2 {[%emt 0:08:45]} c5 {[%emt 0:03:56]} 8. b4 {[%emt 0:02:51]} Qb6 {[%emt 0:09:56]} 9. Qb3 {[%emt 0:02:52]} Rd8 {[%emt 0:06:42]} 10. bxc5 {[%emt 0:02:35]} Bxc5 {[%emt 0:00:14]} 11. d3 {[%emt 0:08:32]} Nc6 {[%emt 0:05:49]} 12. Nbd2 {[%emt 0:01:57]} e5 {[%emt 0:01:00]} 13. Rfb1 {[%emt 0:04:05]} Qc7 {[%emt 0:03:44]} 14. Ba3 {[%emt 0:01:36]} Bxa3 {[%emt 0:01:46]} 15. Qxa3 {[%emt 0:00:20]} Bf5 {[%emt 0:03:55]} 16. Rb2 {[%emt 0:07:07]} Re8 {[%emt 0:06:44]} 17. Ng5 {[%emt 0:02:33]} Rad8 {[%emt 0:04:51]} 18. Rab1 {[%emt 0:02:52]} Bc8 {[%emt 0:00:21]} 19. c5 {[%emt 0:20:27]} Nd5 {[%emt 0:08:06]} 20. Nge4 {[%emt 0:14:16]} Re7 {[%emt 0:06:14]} 21. Nc4 {[%emt 0:04:29]} f5 {[%emt 0:03:39]} 22. Ng5 {[%emt 0:08:06]} h6 {[%emt 0:02:23]} 23. Nd6 {[%emt 0:00:42]} Nf6 {[%emt 0:04:25]} 24. Rxb7 {[%emt 0:02:45]} Bxb7 {[%emt 0:01:26]} 25. Rxb7 {[%emt 0:00:13]} Qxb7 {[%emt 0:03:48]} 26. Nxb7 {[%emt 0:00:02]} Rxb7 {[%emt 0:00:08]} 27. Bxc6 {[%emt 0:00:12]} Rb1+ {[%emt 0:00:04]} 28. Kg2 {[%emt 0:00:06]} hxg5 {[%emt 0:00:05]} 29. Qxa7 {[%emt 0:00:13]} Rc1 {[%emt 0:02:58]} 30. Qc7 {[%emt 0:01:07]} Rf8 {[%emt 0:03:59]} 31. Qxe5 {[%emt 0:00:06]} Ng4 {[%emt 0:00:05]} 32. Qe7 {[%emt 0:01:06]} Rf6 {[%emt 0:01:03]} 33. h3 {[%emt 0:01:28]} Nh6 {[%emt 0:01:13]} 34. Bd5+ {[%emt 0:00:30]} Kh7 {[%emt 0:00:08]} 35. c6 {[%emt 0:00:28]} g4 {[%emt 0:01:47]} 36. h4 {[%emt 0:00:02]} Ng8 {[%emt 0:00:10]} 37. Qd8 {[%emt 0:00:27]} Nh6 {[%emt 0:04:05]} 38. c7 {[%emt 0:00:23]} 1-0

[Event "Fagernes Chess GM-Swiss 2024"]
[Site "Fagernes"]
[Date "2024.03.29"]
[Round "7.35"]
[White "Aniruddh Chatterjee"]
[Black "Anishka Vikram"]
[Result "1-0"]
[ECO "D02"]
[WhiteElo "2182"]
[BlackElo "1995"]
[Annotator "RC"]
[PlyCount "77"]
[EventDate "2024.03.25"]
[EventType "swiss"]
[EventCountry "NOR"]
[SourceTitle "playchess.com"]
[Source "ChessBase"]
[SourceQuality "1"]
[TimeControl "40/6000+30:2400+30"]

1. d4 {[%emt 0:11:34]} d5 {[%emt 0:00:15]} 2. Bf4 {[%emt 0:02:50]} Nf6 {[%emt 0:00:21]} 3. e3 {[%emt 0:00:06]} c5 {[%emt 0:00:47]} 4. Nf3 {[%emt 0:00:06]} Nc6 {[%emt 0:00:16]} 5. Nbd2 {[%emt 0:00:10]} e6 {[%emt 0:00:26]} 6. c3 {[%emt 0:00:14]} Bd6 {[%emt 0:00:17]} 7. Bg3 {[%emt 0:00:12]} O-O {[%emt 0:00:20]} 8. Bd3 {[%emt 0:00:15]} b6 {[%emt 0:00:38]} 9. Qe2 {[%emt 0:01:11]} Bb7 {[%emt 0:04:55]} 10. Rd1 {[%emt 0:00:08]} Re8 {[%emt 0:24:40]} 11. e4 {[%emt 0:00:28]} Be7 {[%emt 0:16:25]} 12. e5 {[%emt 0:05:56]} Nh5 {[%emt 0:00:45]} 13. Ng5 {[%emt 0:00:49]} Bxg5 {[%emt 0:00:31]} 14. Qxh5 {[%emt 0:00:11]} g6 {[%emt 0:00:11]} 15. Qe2 {[%emt 0:00:07]} cxd4 {[%emt 0:00:23]} 16. h4 {[%emt 0:00:15]} Bh6 {[%emt 0:00:49]} 17. h5 {[%emt 0:00:30]} dxc3 {[%emt 0:00:46]} 18. bxc3 {[%emt 0:00:10]} Bg7 {[%emt 0:01:43]} 19. Nf3 {[%emt 0:27:50]} Rc8 {[%emt 0:09:26]} 20. Qe3 {[%emt 0:04:09]} Qe7 {[%emt 0:21:10]} 21. Qf4 {[%emt 0:05:15]} d4 {[%emt 0:20:57]} 22. Bh4 {[%emt 0:04:11]} Qc7 {[%emt 0:01:11]} 23. Bf6 {[%emt 0:04:41]} Bxf6 {[%emt 0:01:17]} 24. Qxf6 {[%emt 0:00:19]} Qe7 {[%emt 0:00:28]} 25. hxg6 {[%emt 0:10:28]} Qxf6 {[%emt 0:01:12]} 26. exf6 {[%emt 0:00:51]} hxg6 {[%emt 0:01:51]} 27. Ng5 {[%emt 0:00:46]} Red8 {[%emt 0:01:04]} 28. Rh7 {[%emt 0:00:24]} Rd5 {[%emt 0:00:42]} 29. Rg7+ {[%emt 0:01:47]} Kf8 {[%emt 0:00:05]} 30. Rxf7+ {[%emt 0:00:24]} Ke8 {[%emt 0:00:36]} 31. Rxb7 {[%emt 0:00:16]} Rxg5 {[%emt 0:00:06]} 32. cxd4 {[%emt 0:00:16]} Rxg2 {[%emt 0:00:48]} 33. Be4 {[%emt 0:00:51]} Rg4 {[%emt 0:00:46]} 34. f3 {[%emt 0:00:44]} Rg2 {[%emt 0:00:26]} 35. Kf1 {[%emt 0:00:33]} Rh2 {[%emt 0:00:43]} 36. Kg1 {[%emt 0:00:35]} Rxa2 {[%emt 0:00:27]} 37. Bxg6+ {[%emt 0:00:41]} Kf8 {[%emt 0:00:33]} 38. Rh7 {[%emt 0:00:08]} Kg8 {[%emt 0:00:25]} 39. f7+ {[%emt 0:00:06]} 1-0

[Event "Fagernes Chess GM-Swiss 2024"]
[Site "Fagernes"]
[Date "2024.03.29"]
[Round "7.36"]
[White "Akshit Kumar J"]
[Black "Stark, John"]
[Result "1-0"]
[ECO "C03"]
[WhiteElo "2172"]
[BlackElo "1947"]
[Annotator "RC"]
[PlyCount "85"]
[EventDate "2024.03.25"]
[EventType "swiss"]
[EventCountry "NOR"]
[SourceTitle "playchess.com"]
[Source "ChessBase"]
[SourceQuality "1"]
[TimeControl "40/6000+30:2400+30"]

1. e4 {[%emt 0:12:01]} e6 {[%emt 0:00:03]} 2. d4 {[%emt 0:00:42]} d5 {[%emt 0:00:04]} 3. Nd2 {[%emt 0:00:06]} h6 {[%emt 0:00:09]} 4. Ngf3 {[%emt 0:02:03]} Nf6 {[%emt 0:00:47]} 5. Bd3 {[%emt 0:02:43]} c5 {[%emt 0:00:44]} 6. e5 {[%emt 0:07:23]} Nfd7 {[%emt 0:00:02]} 7. c3 {[%emt 0:00:23]} Nc6 {[%emt 0:00:03]} 8. Qe2 {[%emt 0:01:23]} g5 {[%emt 0:06:55]} 9. O-O {[%emt 0:10:37]} h5 {[%emt 0:13:08]} 10. dxc5 {[%emt 0:02:35]} g4 {[%emt 0:12:45]} 11. Nd4 {[%emt 0:00:42]} Ncxe5 {[%emt 0:01:32]} 12. Bb5 {[%emt 0:02:14]} Qc7 {[%emt 0:02:54]} 13. f4 {[%emt 0:02:36]} gxf3 {[%emt 0:05:35]} 14. N2xf3 {[%emt 0:01:06]} Bg7 {[%emt 0:00:53]} 15. Bf4 {[%emt 0:14:18]} Nxf3+ {[%emt 0:02:28]} 16. Qxf3 {[%emt 0:00:27]} Qxc5 {[%emt 0:04:33]} 17. Be3 {[%emt 0:03:21]} Qe7 {[%emt 0:03:51]} 18. Rae1 {[%emt 0:00:36]} O-O {[%emt 0:12:27]} 19. Qxh5 {[%emt 0:06:35]} Ne5 {[%emt 0:03:31]} 20. Bh6 {[%emt 0:06:59]} f5 {[%emt 0:10:40]} 21. Re3 {[%emt 0:06:01]} Ng4 {[%emt 0:11:22]} 22. Nxf5 {[%emt 0:02:26]} Rxf5 {[%emt 0:00:20]} 23. Qxg4 {[%emt 0:05:25]} Rxf1+ {[%emt 0:04:29]} 24. Bxf1 {[%emt 0:00:11]} e5 {[%emt 0:05:32]} 25. Qxg7+ {[%emt 0:00:15]} Qxg7 {[%emt 0:00:14]} 26. Bxg7 {[%emt 0:00:04]} Kxg7 {[%emt 0:00:01]} 27. Rxe5 {[%emt 0:00:09]} Kf6 {[%emt 0:01:34]} 28. Rxd5 {[%emt 0:02:17]} Be6 {[%emt 0:00:05]} 29. Rd4 {[%emt 0:02:54]} Bxa2 {[%emt 0:01:34]} 30. Kf2 {[%emt 0:00:18]} Ke5 {[%emt 0:00:23]} 31. Be2 {[%emt 0:00:35]} Be6 {[%emt 0:01:40]} 32. g4 {[%emt 0:00:14]} Rf8+ {[%emt 0:00:06]} 33. Kg3 {[%emt 0:00:07]} Bd5 {[%emt 0:00:41]} 34. h4 {[%emt 0:00:18]} a5 {[%emt 0:01:44]} 35. h5 {[%emt 0:00:41]} b5 {[%emt 0:00:06]} 36. Bxb5 {[%emt 0:01:58]} Rf3+ {[%emt 0:00:32]} 37. Kh4 {[%emt 0:00:08]} Rf2 {[%emt 0:00:03]} 38. Bc4 {[%emt 0:01:36]} Be4 {[%emt 0:00:43]} 39. Kg5 {[%emt 0:02:40]} Rxb2 {[%emt 0:00:38]} 40. Rd7 {[%emt 0:00:09]} Bf3 {[%emt 0:01:00]} 41. Rf7 {[%emt 0:41:08]} Bd1 {[%emt 0:41:00]} 42. Rf5+ {[%emt 0:00:08]} Ke4 {[%emt 0:00:19]} 43. Rxa5 {[%emt 0:00:17]} 1-0

[Event "Fagernes Chess GM-Swiss 2024"]
[Site "Fagernes"]
[Date "2024.03.29"]
[Round "7.37"]
[White "Myagmarsuren, Evsuld"]
[Black "Joel Paul Ganta"]
[Result "1-0"]
[ECO "B81"]
[WhiteElo "2138"]
[BlackElo "1993"]
[Annotator "RC"]
[PlyCount "57"]
[EventDate "2024.03.25"]
[EventType "swiss"]
[EventCountry "NOR"]
[SourceTitle "playchess.com"]
[Source "ChessBase"]
[SourceQuality "1"]
[TimeControl "40/6000+30:2400+30"]

1. e4 {[%emt 0:11:20]} c5 {[%emt 0:12:51]} 2. Nf3 {[%emt 0:00:00]} d6 {[%emt 0:00:03]} 3. d4 {[%emt 0:00:00]} cxd4 {[%emt 0:00:03]} 4. Nxd4 {[%emt 0:00:00]} Nf6 {[%emt 0:00:02]} 5. Nc3 {[%emt 0:00:00]} a6 {[%emt 0:00:03]} 6. Be3 {[%emt 0:00:00]} e6 {[%emt 0:00:04]} 7. g4 {[%emt 0:00:00]} b5 {[%emt 0:00:05]} 8. Bg2 {[%emt 0:00:00]} Bb7 {[%emt 0:00:09]} 9. g5 {[%emt 0:00:00]} Nfd7 {[%emt 0:00:02]} 10. h4 {[%emt 0:00:00]} Nc6 {[%emt 0:01:32]} 11. f4 {[%emt 0:00:00]} Rc8 {[%emt 0:00:29]} 12. O-O {[%emt 0:01:54]} Nxd4 {[%emt 0:14:31]} 13. Bxd4 {[%emt 0:00:18]} e5 {[%emt 0:04:17]} 14. Be3 {[%emt 0:00:58]} exf4 {[%emt 0:04:38]} 15. Bxf4 {[%emt 0:00:06]} Ne5 {[%emt 0:00:08]} 16. Bh3 {[%emt 0:01:30]} Qb6+ {[%emt 0:14:30]} 17. Kh1 {[%emt 0:00:50]} Rc7 {[%emt 0:12:28]} 18. Nd5 {[%emt 0:03:39]} Bxd5 {[%emt 0:00:43]} 19. Qxd5 {[%emt 0:00:15]} Qc6 {[%emt 0:00:06]} 20. c3 {[%emt 0:04:07]} Qxd5 {[%emt 0:06:35]} 21. exd5 {[%emt 0:00:07]} Nc4 {[%emt 0:02:36]} 22. a4 {[%emt 0:03:29]} bxa4 {[%emt 0:08:02]} 23. Rxa4 {[%emt 0:00:32]} a5 {[%emt 0:01:02]} 24. Re1+ {[%emt 0:03:00]} Kd8 {[%emt 0:03:11]} 25. Re4 {[%emt 0:01:16]} Nb6 {[%emt 0:01:59]} 26. Rxa5 {[%emt 0:00:05]} Rc5 {[%emt 0:06:06]} 27. Ra7 {[%emt 0:03:44]} Nxd5 {[%emt 0:00:45]} 28. Rd7+ {[%emt 0:00:07]} Kc8 {[%emt 0:00:11]} 29. Re8# {[%emt 0:00:32]} 1-0

[Event "Fagernes Chess GM-Swiss 2024"]
[Site "Fagernes"]
[Date "2024.03.29"]
[Round "7.38"]
[White "Eliseev, Sergey"]
[Black "Skramstad, Oda Kofoed"]
[Result "1-0"]
[ECO "C74"]
[WhiteElo "2131"]
[BlackElo "1945"]
[Annotator "RC"]
[PlyCount "51"]
[EventDate "2024.03.25"]
[EventType "swiss"]
[EventCountry "NOR"]
[SourceTitle "playchess.com"]
[Source "ChessBase"]
[SourceQuality "1"]
[TimeControl "40/6000+30:2400+30"]

1. e4 {[%emt 0:09:00]} e5 {[%emt 0:01:02]} 2. Nf3 {[%emt 0:00:05]} Nc6 {[%emt 0:00:05]} 3. Bb5 {[%emt 0:00:05]} a6 {[%emt 0:00:34]} 4. Ba4 {[%emt 0:00:01]} d6 {[%emt 0:00:26]} 5. c3 {[%emt 0:02:01]} f5 {[%emt 0:01:05]} 6. d3 {[%emt 0:02:35]} Nf6 {[%emt 0:04:16]} 7. O-O {[%emt 0:03:41]} Be7 {[%emt 0:04:44]} 8. Nbd2 {[%emt 0:06:21]} f4 {[%emt 0:08:42]} 9. d4 {[%emt 0:02:23]} Nd7 {[%emt 0:03:39]} 10. dxe5 {[%emt 0:11:03]} Ndxe5 {[%emt 0:01:37]} 11. Nxe5 {[%emt 0:00:24]} dxe5 {[%emt 0:00:49]} 12. Qh5+ {[%emt 0:00:41]} Kf8 {[%emt 0:01:42]} 13. Bxc6 {[%emt 0:00:39]} bxc6 {[%emt 0:00:16]} 14. Qxe5 {[%emt 0:00:02]} Bd6 {[%emt 0:01:59]} 15. Qh5 {[%emt 0:00:18]} Be6 {[%emt 0:02:19]} 16. Nf3 {[%emt 0:00:33]} Bf7 {[%emt 0:16:28]} 17. Qf5 {[%emt 0:02:08]} g6 {[%emt 0:02:52]} 18. Qh3 {[%emt 0:00:01]} h6 {[%emt 0:02:32]} 19. e5 {[%emt 0:00:07]} Be7 {[%emt 0:03:38]} 20. e6 {[%emt 0:00:06]} Be8 {[%emt 0:03:19]} 21. Bxf4 {[%emt 0:00:02]} h5 {[%emt 0:01:15]} 22. Rad1 {[%emt 0:00:14]} Qc8 {[%emt 0:01:10]} 23. Bg5 {[%emt 0:01:16]} Rh7 {[%emt 0:02:39]} 24. Bxe7+ {[%emt 0:00:15]} Rxe7 {[%emt 0:00:12]} 25. Ng5 {[%emt 0:00:01]} Rb8 {[%emt 0:01:21]} 26. f4 {[%emt 0:00:00]} 1-0

[Event "Fagernes Chess GM-Swiss 2024"]
[Site "Fagernes"]
[Date "2024.03.29"]
[Round "7.39"]
[White "Holand, Per Fredrik"]
[Black "Vijayakumar, Rishi"]
[Result "0-1"]
[ECO "D05"]
[WhiteElo "2068"]
[BlackElo "2156"]
[Annotator "RC"]
[PlyCount "58"]
[EventDate "2024.03.25"]
[EventType "swiss"]
[EventCountry "NOR"]
[SourceTitle "playchess.com"]
[Source "ChessBase"]
[SourceQuality "1"]
[TimeControl "40/6000+30:2400+30"]

1. d4 {[%emt 0:01:34]} Nf6 {[%emt 0:00:04]} 2. Nf3 {[%emt 0:00:08]} d5 {[%emt 0:00:13]} 3. e3 {[%emt 0:00:06]} c5 {[%emt 0:00:04]} 4. Bd3 {[%emt 0:00:20]} Nc6 {[%emt 0:00:59]} 5. c3 {[%emt 0:00:09]} Bg4 {[%emt 0:01:47]} 6. Nbd2 {[%emt 0:01:29]} e6 {[%emt 0:00:49]} 7. Qa4 {[%emt 0:00:24]} Bxf3 {[%emt 0:19:00]} 8. Nxf3 {[%emt 0:01:12]} Qc7 {[%emt 0:02:44]} 9. O-O {[%emt 0:02:58]} Bd6 {[%emt 0:02:45]} 10. dxc5 {[%emt 0:02:26]} Bxc5 {[%emt 0:00:07]} 11. b4 {[%emt 0:00:06]} Bd6 {[%emt 0:01:35]} 12. b5 {[%emt 0:03:10]} Qa5 {[%emt 0:00:19]} 13. Qb3 {[%emt 0:03:03]} Ne5 {[%emt 0:12:18]} 14. Nxe5 {[%emt 0:10:21]} Bxe5 {[%emt 0:00:03]} 15. Ba3 {[%emt 0:00:34]} Qxc3 {[%emt 0:05:50]} 16. Qxc3 {[%emt 0:00:19]} Bxc3 {[%emt 0:00:04]} 17. Rac1 {[%emt 0:00:04]} Ba5 {[%emt 0:00:44]} 18. b6 {[%emt 0:00:16]} Bxb6 {[%emt 0:00:57]} 19. Bb5+ {[%emt 0:00:09]} Kd8 {[%emt 0:01:28]} 20. Rc2 {[%emt 0:03:26]} Rc8 {[%emt 0:00:55]} 21. Rfc1 {[%emt 0:00:08]} Rxc2 {[%emt 0:00:08]} 22. Rxc2 {[%emt 0:00:03]} a6 {[%emt 0:05:18]} 23. Bd3 {[%emt 0:01:18]} Bc7 {[%emt 0:09:07]} 24. Be7+ {[%emt 0:00:59]} Kd7 {[%emt 0:00:06]} 25. a4 {[%emt 0:00:05]} Ng4 {[%emt 0:06:06]} 26. Bh4 {[%emt 0:00:32]} Bxh2+ {[%emt 0:02:42]} 27. Kf1 {[%emt 0:00:05]} Bd6 {[%emt 0:01:30]} 28. Rb2 {[%emt 0:00:08]} Rb8 {[%emt 0:00:14]} 29. Ke2 {[%emt 0:00:23]} Ne5 {[%emt 0:01:02]} 0-1